[Event "*** Titled Tuesday Blitz"]
[Site "Chess.com"]
[Date "2019.06.04"]
[Round "10"]
[White "NM2019"]
[Black "akretchetov"]
[Result "0-1"]
[WhiteElo "2106"]
[BlackElo "2349"]
[TimeControl "180+2"]
[EndTime "15:18:54 PDT"]
[Termination "akretchetov won by checkmate"]

1. c4 {[%clk 0:03:01.7]} 1... e6 {[%clk 0:03:00.5]} 2. Nc3 {[%clk 0:03:03]} 2...
d5 {[%clk 0:03:01.8]} 3. d4 {[%clk 0:03:04.1]} 3... Nf6 {[%clk 0:03:02.6]} 4.
Nf3 {[%clk 0:03:05.6]} 4... a6 {[%clk 0:03:03.3]} 5. g3 {[%clk 0:03:07.1]} 5...
dxc4 {[%clk 0:03:00.3]} 6. Bg2 {[%clk 0:03:08.5]} 6... b5 {[%clk 0:03:01.5]} 7.
Ne5 {[%clk 0:03:09.6]} 7... Nd5 {[%clk 0:03:02.1]} 8. a4 {[%clk 0:03:08.6]} 8...
Bb7 {[%clk 0:03:01.1]} 9. Bxd5 {[%clk 0:03:05.6]} 9... exd5 {[%clk 0:02:42.2]}
10. axb5 {[%clk 0:03:06.1]} 10... axb5 {[%clk 0:02:34]} 11. Rxa8 {[%clk
0:03:06.3]} 11... Bxa8 {[%clk 0:02:35.2]} 12. Nxb5 {[%clk 0:03:05.7]} 12... f6
{[%clk 0:02:28.8]} 13. Nf3 {[%clk 0:03:04.9]} 13... Bc6 {[%clk 0:02:29.1]} 14.
Nc3 {[%clk 0:03:05.8]} 14... Bb4 {[%clk 0:02:26.6]} 15. O-O {[%clk 0:03:07]}
15... O-O {[%clk 0:02:27.7]} 16. Bf4 {[%clk 0:02:53.9]} 16... Re8 {[%clk
0:02:25.8]} 17. h4 {[%clk 0:02:52.1]} 17... Nd7 {[%clk 0:02:20.6]} 18. h5 {[%clk
0:02:52.2]} 18... Nf8 {[%clk 0:02:16.8]} 19. Qd2 {[%clk 0:02:45]} 19... Qd7
{[%clk 0:02:15.2]} 20. Kg2 {[%clk 0:02:45.3]} 20... Qf7 {[%clk 0:02:11.5]} 21.
Rh1 {[%clk 0:02:45.4]} 21... Ne6 {[%clk 0:02:01.8]} 22. e3 {[%clk 0:02:36.1]}
22... Nxf4+ {[%clk 0:01:49.9]} 23. exf4 {[%clk 0:02:35]} 23... Bd7 {[%clk
0:01:47.6]} 24. Ne1 {[%clk 0:02:14.7]} 24... Bg4 {[%clk 0:01:38.9]} 25. Nc2
{[%clk 0:02:10.5]} 25... Ba5 {[%clk 0:01:30]} 26. h6 {[%clk 0:02:07.5]} 26... g6
{[%clk 0:01:18.2]} 27. Re1 {[%clk 0:02:08]} 27... c6 {[%clk 0:01:13.7]} 28. Ne3
{[%clk 0:01:55]} 28... Bd7 {[%clk 0:01:11.2]} 29. Qc2 {[%clk 0:01:53.8]} 29...
c5 {[%clk 0:01:04]} 30. Rd1 {[%clk 0:01:42.4]} 30... cxd4 {[%clk 0:01:00.6]} 31.
Rxd4 {[%clk 0:01:43.3]} 31... Bb6 {[%clk 0:00:59.6]} 32. Rxd5 {[%clk 0:01:39.1]}
32... Bc6 {[%clk 0:01:00.5]} 33. Kf1 {[%clk 0:01:32]} 33... Bxe3 {[%clk
0:00:58.7]} 34. Rd6 {[%clk 0:01:30.7]} 34... Qc7 {[%clk 0:00:42]} 35. Rxf6
{[%clk 0:01:24.2]} 35... Bd4 {[%clk 0:00:38.8]} 36. Rxg6+ {[%clk 0:01:08.1]}
36... hxg6 {[%clk 0:00:39.3]} 37. Qxg6+ {[%clk 0:01:09.3]} 37... Kh8 {[%clk
0:00:40.7]} 38. Ne2 {[%clk 0:00:58.6]} 38... Qe7 {[%clk 0:00:36.5]} 39. Nxd4
{[%clk 0:00:57.4]} 39... Qe1# {[%clk 0:00:37.1]} 0-1

[Event "*** Titled Tuesday Blitz"]
[Site "Chess.com"]
[Date "2019.06.04"]
[Round "10"]
[White "lexiel"]
[Black "Saitama_Hero"]
[Result "1-0"]
[WhiteElo "2320"]
[BlackElo "2444"]
[TimeControl "180+2"]
[EndTime "15:18:57 PDT"]
[Termination "lexiel won on time"]

1. c4 {[%clk 0:03:01.9]} 1... Nf6 {[%clk 0:02:59.7]} 2. Nf3 {[%clk 0:03:02.7]}
2... Nc6 {[%clk 0:03:00]} 3. e3 {[%clk 0:03:01.7]} 3... e5 {[%clk 0:02:59.1]} 4.
a3 {[%clk 0:03:02]} 4... e4 {[%clk 0:02:59.2]} 5. Nd4 {[%clk 0:03:02.3]} 5...
Nxd4 {[%clk 0:02:59.2]} 6. exd4 {[%clk 0:03:03.5]} 6... c6 {[%clk 0:02:53.8]} 7.
d3 {[%clk 0:03:03.9]} 7... d5 {[%clk 0:02:49.3]} 8. dxe4 {[%clk 0:03:05.1]} 8...
dxe4 {[%clk 0:02:48.9]} 9. h3 {[%clk 0:03:03.7]} 9... h6 {[%clk 0:02:44.8]} 10.
Be3 {[%clk 0:03:04.5]} 10... Bd6 {[%clk 0:02:45.5]} 11. Nc3 {[%clk 0:03:04.4]}
11... O-O {[%clk 0:02:46.5]} 12. Qc2 {[%clk 0:03:05.2]} 12... Re8 {[%clk
0:02:46.5]} 13. O-O-O {[%clk 0:03:03.5]} 13... Bf5 {[%clk 0:02:43.5]} 14. g4
{[%clk 0:03:04.2]} 14... Bg6 {[%clk 0:02:45]} 15. Be2 {[%clk 0:02:57.5]} 15...
Qc7 {[%clk 0:02:31.7]} 16. h4 {[%clk 0:02:56.1]} 16... h5 {[%clk 0:01:58.9]} 17.
gxh5 {[%clk 0:02:50.2]} 17... Nxh5 {[%clk 0:02:00.8]} 18. Rhg1 {[%clk
0:02:48.7]} 18... Nf4 {[%clk 0:01:55.2]} 19. Kb1 {[%clk 0:02:33.5]} 19... Nxe2
{[%clk 0:01:36.5]} 20. Qxe2 {[%clk 0:02:33.6]} 20... f5 {[%clk 0:01:31.4]} 21.
h5 {[%clk 0:02:34.1]} 21... Bh7 {[%clk 0:01:26.8]} 22. h6 {[%clk 0:02:27.8]}
22... g6 {[%clk 0:01:19.9]} 23. c5 {[%clk 0:02:25.6]} 23... Be7 {[%clk
0:01:13.2]} 24. d5 {[%clk 0:02:25.9]} 24... Bf6 {[%clk 0:01:03.2]} 25. d6 {[%clk
0:02:20]} 25... Qf7 {[%clk 0:01:04]} 26. Bd4 {[%clk 0:02:18.1]} 26... Bxd4
{[%clk 0:01:00.8]} 27. Rxd4 {[%clk 0:02:19.1]} 27... Kh8 {[%clk 0:00:50.6]} 28.
Ka1 {[%clk 0:02:19.9]} 28... Rad8 {[%clk 0:00:50.9]} 29. Qd2 {[%clk 0:02:19.7]}
29... Qf6 {[%clk 0:00:47.7]} 30. Ne2 {[%clk 0:02:19.8]} 30... Bg8 {[%clk
0:00:43.4]} 31. Nf4 {[%clk 0:02:16.5]} 31... Bf7 {[%clk 0:00:39]} 32. Nh3 {[%clk
0:02:14.4]} 32... Re5 {[%clk 0:00:34.3]} 33. Ng5 {[%clk 0:02:09.8]} 33... Bd5
{[%clk 0:00:24.1]} 34. Qc3 {[%clk 0:02:09.1]} 34... Rf8 {[%clk 0:00:14]} 35. d7
{[%clk 0:02:05.7]} 35... f4 {[%clk 0:00:15.3]} 36. Rxd5 {[%clk 0:01:59.9]} 36...
Rxd5 {[%clk 0:00:17.2]} 37. d8=Q {[%clk 0:01:50.6]} 37... Rdxd8 {[%clk
0:00:15.4]} 38. Qb3 {[%clk 0:01:48]} 38... Rd2 {[%clk 0:00:12]} 39. Qxb7 {[%clk
0:01:48.2]} 39... Rf7 {[%clk 0:00:04.7]} 40. Nxf7+ {[%clk 0:01:48.3]} 40... Kg8
{[%clk 0:00:05.9]} 41. Ng5 {[%clk 0:01:46.4]} 41... e3 {[%clk 0:00:04.8]} 42.
fxe3 {[%clk 0:01:44.6]} 42... fxe3 {[%clk 0:00:03.9]} 43. Ne4 {[%clk 0:01:45.8]}
1-0

[Event "*** Titled Tuesday Blitz"]
[Site "Chess.com"]
[Date "2019.06.04"]
[Round "10"]
[White "severomorskij"]
[Black "spicycaterpillar"]
[Result "1-0"]
[WhiteElo "2817"]
[BlackElo "2852"]
[TimeControl "180+2"]
[EndTime "15:19:10 PDT"]
[Termination "severomorskij won by checkmate"]

1. d4 {[%clk 0:03:01.9]} 1... Nf6 {[%clk 0:02:57.7]} 2. Bg5 {[%clk 0:03:02.2]}
2... d5 {[%clk 0:02:56.8]} 3. Nd2 {[%clk 0:02:55.8]} 3... c5 {[%clk 0:02:55.5]}
4. dxc5 {[%clk 0:02:55.7]} 4... Na6 {[%clk 0:02:34.6]} 5. e4 {[%clk 0:02:48.1]}
5... Nxc5 {[%clk 0:02:27.6]} 6. exd5 {[%clk 0:02:32.2]} 6... Qxd5 {[%clk
0:02:22.6]} 7. Ngf3 {[%clk 0:02:32.1]} 7... e6 {[%clk 0:02:10]} 8. Bc4 {[%clk
0:02:28.9]} 8... Qd6 {[%clk 0:02:05.2]} 9. Qe2 {[%clk 0:02:24.1]} 9... Be7
{[%clk 0:02:05.1]} 10. O-O-O {[%clk 0:02:17.1]} 10... Qc7 {[%clk 0:01:57.5]} 11.
g4 {[%clk 0:01:53]} 11... a6 {[%clk 0:01:55.9]} 12. Bxf6 {[%clk 0:01:49.2]}
12... gxf6 {[%clk 0:01:52.4]} 13. Kb1 {[%clk 0:01:48.6]} 13... b5 {[%clk
0:01:51.7]} 14. Bd3 {[%clk 0:01:47.8]} 14... Bb7 {[%clk 0:01:29.9]} 15. Ne4
{[%clk 0:01:47.4]} 15... Nxd3 {[%clk 0:01:28.6]} 16. cxd3 {[%clk 0:01:43]} 16...
b4 {[%clk 0:01:22.4]} 17. Qe3 {[%clk 0:01:27.7]} 17... Bd5 {[%clk 0:01:15.7]}
18. Rc1 {[%clk 0:01:21.6]} 18... Qd7 {[%clk 0:00:58.7]} 19. b3 {[%clk 0:01:06]}
19... a5 {[%clk 0:00:52.4]} 20. Qf4 {[%clk 0:01:00.8]} 20... Qd8 {[%clk
0:00:25.4]} 21. Rc7 {[%clk 0:00:29.9]} 21... Bxe4 {[%clk 0:00:12.3]} 22. Qxe4
{[%clk 0:00:23.2]} 22... O-O {[%clk 0:00:13]} 23. Rhc1 {[%clk 0:00:19.1]} 23...
a4 {[%clk 0:00:12.9]} 24. Nd4 {[%clk 0:00:19.4]} 24... axb3 {[%clk 0:00:13.4]}
25. axb3 {[%clk 0:00:19.2]} 25... Bd6 {[%clk 0:00:12.3]} 26. Nxe6 {[%clk
0:00:19.1]} 26... fxe6 {[%clk 0:00:09.7]} 27. Qxh7# {[%clk 0:00:19.5]} 1-0

[Event "*** Titled Tuesday Blitz"]
[Site "Chess.com"]
[Date "2019.06.04"]
[Round "10"]
[White "Slovak_fighter2000"]
[Black "WPWPWP-2015"]
[Result "0-1"]
[WhiteElo "2471"]
[BlackElo "2435"]
[TimeControl "180+2"]
[EndTime "15:19:18 PDT"]
[Termination "WPWPWP-2015 won by resignation"]

1. d4 {[%clk 0:03:01.9]} 1... Nf6 {[%clk 0:02:57]} 2. c4 {[%clk 0:03:03.2]} 2...
e6 {[%clk 0:02:57.8]} 3. Nc3 {[%clk 0:03:04.4]} 3... Bb4 {[%clk 0:02:57]} 4. Qc2
{[%clk 0:03:05.6]} 4... O-O {[%clk 0:02:56.1]} 5. a3 {[%clk 0:03:07.1]} 5...
Bxc3+ {[%clk 0:02:56.6]} 6. Qxc3 {[%clk 0:03:09]} 6... d5 {[%clk 0:02:56.1]} 7.
Bg5 {[%clk 0:03:07.4]} 7... dxc4 {[%clk 0:02:57.1]} 8. Qxc4 {[%clk 0:03:08.2]}
8... b6 {[%clk 0:02:58.2]} 9. Nf3 {[%clk 0:03:08.8]} 9... Ba6 {[%clk 0:02:58.8]}
10. Qc2 {[%clk 0:03:08.3]} 10... Nbd7 {[%clk 0:02:59.1]} 11. e3 {[%clk
0:03:08.5]} 11... Bxf1 {[%clk 0:02:58.6]} 12. Kxf1 {[%clk 0:03:08.1]} 12... c5
{[%clk 0:02:59.6]} 13. g3 {[%clk 0:03:04.9]} 13... Rc8 {[%clk 0:02:57.3]} 14.
dxc5 {[%clk 0:03:02.2]} 14... Nxc5 {[%clk 0:02:55.9]} 15. Bxf6 {[%clk
0:02:54.3]} 15... Qxf6 {[%clk 0:02:46.9]} 16. Kg2 {[%clk 0:02:55.5]} 16... e5
{[%clk 0:02:38.2]} 17. Qe2 {[%clk 0:02:44.8]} 17... e4 {[%clk 0:02:36.5]} 18.
Nd4 {[%clk 0:02:45.6]} 18... Nd3 {[%clk 0:02:33.1]} 19. Rad1 {[%clk 0:02:37.5]}
19... Qe5 {[%clk 0:02:14.4]} 20. Rd2 {[%clk 0:02:36.9]} 20... h5 {[%clk
0:02:07.2]} 21. Rf1 {[%clk 0:02:34.8]} 21... g6 {[%clk 0:01:59.5]} 22. f4 {[%clk
0:02:20.6]} 22... Qh8 {[%clk 0:01:29.1]} 23. f5 {[%clk 0:02:06]} 23... g5 {[%clk
0:01:29.9]} 24. f6 {[%clk 0:02:00.7]} 24... Rc5 {[%clk 0:01:20.2]} 25. b4 {[%clk
0:01:31.3]} 25... Rd5 {[%clk 0:01:13.7]} 26. Rxd3 {[%clk 0:00:55.1]} 26... exd3
{[%clk 0:01:13.5]} 27. Qxd3 {[%clk 0:00:57]} 27... Qh7 {[%clk 0:01:08.6]} 28.
Qb3 {[%clk 0:00:33.6]} 28... Qe4+ {[%clk 0:01:07.3]} 29. Kg1 {[%clk 0:00:34.8]}
29... Re8 {[%clk 0:01:02.5]} 30. Rf3 {[%clk 0:00:22]} 30... g4 {[%clk
0:01:02.6]} 31. Rf4 {[%clk 0:00:23.1]} 31... Qxe3+ {[%clk 0:01:01.7]} 32. Qxe3
{[%clk 0:00:25]} 32... Rxe3 {[%clk 0:01:01.7]} 33. Nf5 {[%clk 0:00:24.7]} 33...
Rd1+ {[%clk 0:00:55.3]} 34. Kf2 {[%clk 0:00:24.6]} 34... Rxa3 {[%clk 0:00:54]}
35. Ne7+ {[%clk 0:00:24.6]} 35... Kh7 {[%clk 0:00:46.9]} 36. Re4 {[%clk
0:00:19.1]} 36... Rd2+ {[%clk 0:00:46.1]} 37. Ke1 {[%clk 0:00:19.2]} 37... Rxh2
{[%clk 0:00:45.2]} 38. Kf1 {[%clk 0:00:18.3]} 38... Ra1+ {[%clk 0:00:43.1]} 0-1

[Event "*** Titled Tuesday Blitz"]
[Site "Chess.com"]
[Date "2019.06.04"]
[Round "10"]
[White "Zubrrr"]
[Black "FedaMaster"]
[Result "1-0"]
[WhiteElo "2723"]
[BlackElo "2570"]
[TimeControl "180+2"]
[EndTime "15:19:22 PDT"]
[Termination "Zubrrr won by resignation"]

1. c4 {[%clk 0:03:01.9]} 1... Nf6 {[%clk 0:03:00]} 2. g3 {[%clk 0:03:03.2]} 2...
d5 {[%clk 0:03:00.7]} 3. cxd5 {[%clk 0:03:04]} 3... Nxd5 {[%clk 0:03:02.6]} 4.
Bg2 {[%clk 0:03:05]} 4... g6 {[%clk 0:03:03.9]} 5. Nc3 {[%clk 0:03:06.2]} 5...
Nb6 {[%clk 0:03:05]} 6. Nf3 {[%clk 0:03:05.9]} 6... Bg7 {[%clk 0:03:06.4]} 7. h4
{[%clk 0:03:05.2]} 7... h6 {[%clk 0:03:05.6]} 8. d4 {[%clk 0:03:03.4]} 8... O-O
{[%clk 0:03:05.1]} 9. O-O {[%clk 0:02:57.1]} 9... Nc6 {[%clk 0:03:03.3]} 10. d5
{[%clk 0:02:42.6]} 10... Na5 {[%clk 0:02:50.6]} 11. e4 {[%clk 0:02:41.4]} 11...
c6 {[%clk 0:02:50.8]} 12. Bf4 {[%clk 0:02:35.9]} 12... cxd5 {[%clk 0:02:49.4]}
13. exd5 {[%clk 0:02:37.8]} 13... Nac4 {[%clk 0:02:19.7]} 14. Qe2 {[%clk
0:02:22.1]} 14... e5 {[%clk 0:02:10.1]} 15. Bc1 {[%clk 0:01:29.4]} 15... e4
{[%clk 0:02:06.7]} 16. Qxe4 {[%clk 0:01:02.5]} 16... Re8 {[%clk 0:02:07.7]} 17.
Qf4 {[%clk 0:00:49.4]} 17... Bf5 {[%clk 0:02:05]} 18. g4 {[%clk 0:00:21.2]}
18... Bd3 {[%clk 0:02:05.5]} 19. Rd1 {[%clk 0:00:21.5]} 19... Bc2 {[%clk
0:02:07]} 20. Rd4 {[%clk 0:00:19.2]} 20... Bxd4 {[%clk 0:02:02.7]} 21. Nxd4
{[%clk 0:00:19.7]} 21... Re1+ {[%clk 0:02:04.2]} 22. Kh2 {[%clk 0:00:20.7]}
22... Bd3 {[%clk 0:02:04.6]} 23. Qg3 {[%clk 0:00:20]} 23... Qf6 {[%clk
0:02:00.3]} 24. Qxd3 {[%clk 0:00:19.3]} 24... Qxh4+ {[%clk 0:01:59.7]} 25. Qh3
{[%clk 0:00:20.1]} 25... Qxf2 {[%clk 0:02:01.3]} 26. Nf3 {[%clk 0:00:21]} 26...
Rae8 {[%clk 0:01:51.6]} 27. Qxh6 {[%clk 0:00:18.1]} 27... R1e2 {[%clk
0:01:36.4]} 28. Nxe2 {[%clk 0:00:18.5]} 28... Rxe2 {[%clk 0:01:38.3]} 29. Qh3
{[%clk 0:00:18.5]} 29... Nxd5 {[%clk 0:01:37.3]} 30. Qg3 {[%clk 0:00:16.6]}
30... Qf1 {[%clk 0:01:32.3]} 31. b3 {[%clk 0:00:11.7]} 31... Nd6 {[%clk
0:01:27.1]} 32. Bb2 {[%clk 0:00:10.9]} 32... Qf2 {[%clk 0:01:26.2]} 33. Qxf2
{[%clk 0:00:10.4]} 33... Rxf2 {[%clk 0:01:28.1]} 34. Bd4 {[%clk 0:00:11.6]}
34... Re2 {[%clk 0:01:28.4]} 35. Re1 {[%clk 0:00:12]} 35... Rxa2 {[%clk
0:01:28.8]} 36. Kg3 {[%clk 0:00:12.4]} 36... f5 {[%clk 0:01:27.8]} 37. Ng5
{[%clk 0:00:11.8]} 37... f4+ {[%clk 0:01:27.4]} 38. Kh3 {[%clk 0:00:12.2]} 38...
Nb4 {[%clk 0:01:28.8]} 39. Re6 {[%clk 0:00:10.5]} 39... Ra6 {[%clk 0:01:24.4]}
40. Rxg6+ {[%clk 0:00:10.8]} 40... Kf8 {[%clk 0:01:26]} 41. Bc5 {[%clk
0:00:12.3]} 41... Ke7 {[%clk 0:01:25.6]} 42. Bxb4 {[%clk 0:00:13.2]} 42... Kd7
{[%clk 0:01:26.5]} 43. Bxb7 {[%clk 0:00:13.9]} 43... Rb6 {[%clk 0:01:25.7]} 44.
Rxd6+ {[%clk 0:00:14.7]} 44... Rxd6 {[%clk 0:01:27.1]} 45. Bxd6 {[%clk
0:00:16.6]} 45... a5 {[%clk 0:01:28.1]} 46. Nf3 {[%clk 0:00:18.5]} 46... a4
{[%clk 0:01:30]} 47. bxa4 {[%clk 0:00:19.2]} 47... Kxd6 {[%clk 0:01:31.6]} 48.
g5 {[%clk 0:00:21.1]} 48... Ke6 {[%clk 0:01:32.4]} 49. Be4 {[%clk 0:00:21.5]}
1-0

[Event "*** Titled Tuesday Blitz"]
[Site "Chess.com"]
[Date "2019.06.04"]
[Round "10"]
[White "SergeiAza"]
[Black "Astaneh"]
[Result "0-1"]
[WhiteElo "2753"]
[BlackElo "2643"]
[TimeControl "180+2"]
[EndTime "15:19:23 PDT"]
[Termination "Astaneh won by resignation"]

1. e4 {[%clk 0:03:01.9]} 1... e5 {[%clk 0:03:01]} 2. Nf3 {[%clk 0:03:02.9]} 2...
Nc6 {[%clk 0:03:02.4]} 3. Bb5 {[%clk 0:03:03.5]} 3... Nf6 {[%clk 0:03:03.4]} 4.
O-O {[%clk 0:03:04.5]} 4... Nxe4 {[%clk 0:03:04.7]} 5. d4 {[%clk 0:03:05.9]}
5... Nd6 {[%clk 0:03:05.8]} 6. dxe5 {[%clk 0:03:07.5]} 6... Nxb5 {[%clk
0:03:06.7]} 7. a4 {[%clk 0:03:09.1]} 7... d6 {[%clk 0:03:05.4]} 8. e6 {[%clk
0:03:09.1]} 8... Bxe6 {[%clk 0:03:02.7]} 9. axb5 {[%clk 0:03:09.6]} 9... Ne5
{[%clk 0:03:04.1]} 10. Ng5 {[%clk 0:02:52.9]} 10... Qd7 {[%clk 0:02:46.8]} 11.
Nc3 {[%clk 0:02:41.9]} 11... Be7 {[%clk 0:02:41.5]} 12. Nxe6 {[%clk 0:02:22.2]}
12... fxe6 {[%clk 0:02:42.6]} 13. f4 {[%clk 0:02:14.9]} 13... Ng6 {[%clk
0:02:43.4]} 14. Qf3 {[%clk 0:02:13.1]} 14... c6 {[%clk 0:02:37.9]} 15. bxc6
{[%clk 0:01:34.6]} 15... bxc6 {[%clk 0:02:38.6]} 16. Qe2 {[%clk 0:01:31.3]}
16... O-O {[%clk 0:02:36.4]} 17. Be3 {[%clk 0:01:32.9]} 17... Bf6 {[%clk
0:02:34.4]} 18. Qd3 {[%clk 0:01:28.5]} 18... d5 {[%clk 0:02:32.7]} 19. Ra6
{[%clk 0:01:22.1]} 19... e5 {[%clk 0:02:33.1]} 20. Bc5 {[%clk 0:01:17.3]} 20...
Rfe8 {[%clk 0:02:31]} 21. f5 {[%clk 0:01:11.1]} 21... e4 {[%clk 0:02:27.7]} 22.
Nxe4 {[%clk 0:01:06.9]} 22... Rxe4 {[%clk 0:02:28]} 23. fxg6 {[%clk 0:01:07.9]}
23... hxg6 {[%clk 0:02:29.6]} 24. c3 {[%clk 0:01:07.6]} 24... Qb7 {[%clk
0:02:24.6]} 25. h3 {[%clk 0:00:53.7]} 25... Kh7 {[%clk 0:02:10.2]} 26. Ra2
{[%clk 0:00:29.9]} 26... a5 {[%clk 0:02:06.6]} 27. Kh1 {[%clk 0:00:24.2]} 27...
a4 {[%clk 0:02:07.4]} 28. Ba3 {[%clk 0:00:25.3]} 28... Qb5 {[%clk 0:02:02.7]}
29. Qf3 {[%clk 0:00:22.2]} 29... Qe2 {[%clk 0:01:53.2]} 30. Raa1 {[%clk
0:00:23.3]} 30... Qxf3 {[%clk 0:01:53.3]} 31. Rxf3 {[%clk 0:00:24.4]} 31... Rb8
{[%clk 0:01:48.2]} 32. Rd1 {[%clk 0:00:24.6]} 32... Rb3 {[%clk 0:01:48.8]} 33.
Rfd3 {[%clk 0:00:21.6]} 33... Be5 {[%clk 0:01:43.3]} 34. Kg1 {[%clk 0:00:19.6]}
34... g5 {[%clk 0:01:44.2]} 35. g3 {[%clk 0:00:19.6]} 35... Re2 {[%clk 0:01:38]}
36. Rf3 {[%clk 0:00:15]} 36... Kg6 {[%clk 0:01:34.9]} 37. Rdd3 {[%clk
0:00:08.9]} 37... Rc2 {[%clk 0:01:13.4]} 38. Rf2 {[%clk 0:00:07.1]} 38... Rxf2
{[%clk 0:01:05.9]} 39. Kxf2 {[%clk 0:00:07.9]} 39... d4 {[%clk 0:01:07.8]} 40.
Bc5 {[%clk 0:00:02.8]} 40... Rxb2+ {[%clk 0:01:06]} 41. Kf3 {[%clk 0:00:03.6]}
41... dxc3 {[%clk 0:01:06.9]} 0-1

[Event "*** Titled Tuesday Blitz"]
[Site "Chess.com"]
[Date "2019.06.04"]
[Round "10"]
[White "Dr-Bassem"]
[Black "MarcoRiehle"]
[Result "0-1"]
[WhiteElo "2838"]
[BlackElo "2562"]
[TimeControl "180+2"]
[EndTime "15:19:34 PDT"]
[Termination "MarcoRiehle won on time"]

1. e4 {[%clk 0:03:01.9]} 1... e5 {[%clk 0:03:00.6]} 2. Nf3 {[%clk 0:03:02.5]}
2... Nf6 {[%clk 0:03:02]} 3. Nxe5 {[%clk 0:03:02.3]} 3... Nxe4 {[%clk 0:03:03]}
4. Qe2 {[%clk 0:03:01.7]} 4... Qe7 {[%clk 0:03:04.2]} 5. Qxe4 {[%clk 0:03:02]}
5... d6 {[%clk 0:03:04.8]} 6. d4 {[%clk 0:03:03.1]} 6... dxe5 {[%clk 0:03:05.7]}
7. dxe5 {[%clk 0:02:59.8]} 7... Nc6 {[%clk 0:03:06.5]} 8. Bb5 {[%clk 0:02:40.3]}
8... Bd7 {[%clk 0:03:04.6]} 9. Nc3 {[%clk 0:02:41.8]} 9... O-O-O {[%clk
0:03:02.5]} 10. Be3 {[%clk 0:02:27.3]} 10... a6 {[%clk 0:02:59.7]} 11. Ba4
{[%clk 0:02:05.8]} 11... Qb4 {[%clk 0:02:56.6]} 12. Qxb4 {[%clk 0:01:53.9]}
12... Bxb4 {[%clk 0:02:54]} 13. f4 {[%clk 0:01:48.9]} 13... Nxe5 {[%clk
0:02:49.5]} 14. Bxd7+ {[%clk 0:01:28.7]} 14... Nxd7 {[%clk 0:02:51.4]} 15. Bd4
{[%clk 0:01:12.4]} 15... c5 {[%clk 0:02:35.3]} 16. Bxg7 {[%clk 0:01:02.7]} 16...
Rhg8 {[%clk 0:02:36.4]} 17. Bh6 {[%clk 0:01:02.3]} 17... Rxg2 {[%clk 0:02:37.5]}
18. O-O-O {[%clk 0:01:02]} 18... Bxc3 {[%clk 0:02:29.9]} 19. bxc3 {[%clk
0:01:03.9]} 19... Nb6 {[%clk 0:02:31.3]} 20. Rxd8+ {[%clk 0:00:56.7]} 20... Kxd8
{[%clk 0:02:33.2]} 21. Bg5+ {[%clk 0:00:57.9]} 21... Kc7 {[%clk 0:02:30.8]} 22.
Re1 {[%clk 0:00:58.3]} 22... Rxh2 {[%clk 0:02:27.1]} 23. Re7+ {[%clk 0:00:57.2]}
23... Kc6 {[%clk 0:02:25.1]} 24. Rxf7 {[%clk 0:00:46.5]} 24... Nc4 {[%clk
0:02:25.9]} 25. Kd1 {[%clk 0:00:44.7]} 25... Ne3+ {[%clk 0:02:26.8]} 26. Ke1
{[%clk 0:00:46]} 26... Nxc2+ {[%clk 0:02:26.8]} 27. Kf1 {[%clk 0:00:40.8]} 27...
Ne3+ {[%clk 0:02:19.7]} 28. Ke1 {[%clk 0:00:37.1]} 28... h6 {[%clk 0:02:02]} 29.
Rf6+ {[%clk 0:00:33]} 29... Kd5 {[%clk 0:01:52.4]} 30. Rxh6 {[%clk 0:00:29.7]}
30... Rxa2 {[%clk 0:01:46.1]} 31. Rb6 {[%clk 0:00:12.9]} 31... Ke4 {[%clk
0:01:46.9]} 32. f5 {[%clk 0:00:14.4]} 32... Nxf5 {[%clk 0:01:38.8]} 33. Rxb7
{[%clk 0:00:15.6]} 33... Kd3 {[%clk 0:01:37.4]} 34. Rc7 {[%clk 0:00:16.1]} 34...
Re2+ {[%clk 0:01:23.6]} 35. Kd1 {[%clk 0:00:14.6]} 35... Rg2 {[%clk 0:01:21.8]}
36. Rd7+ {[%clk 0:00:13.4]} 36... Nd4 {[%clk 0:01:09]} 37. Be3 {[%clk
0:00:04.1]} 37... Kxe3 {[%clk 0:01:05.8]} 38. cxd4 {[%clk 0:00:05.5]} 38... cxd4
{[%clk 0:01:07.7]} 39. Ra7 {[%clk 0:00:04.5]} 39... Rg1+ {[%clk 0:01:05.5]} 40.
Kc2 {[%clk 0:00:05.7]} 40... d3+ {[%clk 0:01:06.7]} 41. Kc3 {[%clk 0:00:05.5]}
41... Rc1+ {[%clk 0:01:07.1]} 42. Kb2 {[%clk 0:00:06.8]} 42... d2 {[%clk
0:01:07.3]} 0-1